[Event "European School-ch 2019"]
[Site "Mamaia"]
[Date "2019.06.07"]
[Round "8.8"]
[White "Ceres, Dragos"]
[Black "Ochedzan, Tymon"]
[Result "0-1"]
[ECO "B51"]
[WhiteElo "2291"]
[BlackElo "2064"]
[Annotator "RC"]
[PlyCount "76"]
[EventDate "2019.05.31"]
[EventType "swiss"]
[EventCountry "ROU"]
[SourceTitle "playchess.com"]
[Source "ChessBase"]
[SourceQuality "1"]
[TimeControl "40/5400+30:1800+30"]

1. e4 {[%emt 0:00:00]} c5 {[%emt 0:00:00]} 2. Nf3 {[%emt 0:00:00]} d6 {[%emt 0:00:00]} 3. Bb5+ {[%emt 0:00:00]} Nd7 {[%emt 0:00:02]} 4. c3 {[%emt 0:00:00]} Ngf6 {[%emt 0:01:29]} 5. Bd3 {[%emt 0:00:37]} e5 {[%emt 0:02:19]} 6. Bc2 {[%emt 0:00:30]} Be7 {[%emt 0:01:40]} 7. d4 {[%emt 0:00:18]} cxd4 {[%emt 0:01:33]} 8. cxd4 {[%emt 0:00:11]} O-O {[%emt 0:02:11]} 9. O-O {[%emt 0:00:15]} b5 {[%emt 0:05:15]} 10. Qe2 {[%emt 0:07:41]} a6 {[%emt 0:05:25]} 11. Rd1 {[%emt 0:07:00]} Qc7 {[%emt 0:03:31]} 12. b3 {[%emt 0:14:44]} Bb7 {[%emt 0:04:30]} 13. Bb2 {[%emt 0:00:47]} Rac8 {[%emt 0:03:36]} 14. Bd3 {[%emt 0:00:10]} Qb8 {[%emt 0:05:12]} 15. Nbd2 {[%emt 0:00:42]} Rfe8 {[%emt 0:16:38]} 16. a4 {[%emt 0:03:31]} bxa4 {[%emt 0:05:36]} 17. Rxa4 {[%emt 0:02:13]} exd4 {[%emt 0:02:27]} 18. Bxd4 {[%emt 0:01:38]} d5 {[%emt 0:02:59]} 19. e5 {[%emt 0:14:29]} Bc5 {[%emt 0:03:01]} 20. Bb2 {[%emt 0:02:09]} d4 {[%emt 0:06:14]} 21. Bxa6 {[%emt 0:14:40]} Bxa6 {[%emt 0:05:00]} 22. Qxa6 {[%emt 0:00:09]} Nxe5 {[%emt 0:01:06]} 23. Nxe5 {[%emt 0:01:53]} Rxe5 {[%emt 0:03:58]} 24. Bxd4 {[%emt 0:02:18]} Re6 {[%emt 0:03:24]} 25. Qa5 {[%emt 0:02:01]} Bd6 {[%emt 0:01:15]} 26. g3 {[%emt 0:01:10]} Rce8 {[%emt 0:01:12]} 27. Bxf6 {[%emt 0:03:48]} Rxf6 {[%emt 0:04:55]} 28. Ne4 {[%emt 0:06:22]} Rfe6 {[%emt 0:01:57]} 29. Qd5 {[%emt 0:00:10]} Bc7 {[%emt 0:01:20]} 30. Rda1 {[%emt 0:04:20]} Re5 {[%emt 0:02:15]} 31. Qd3 {[%emt 0:02:12]} Qb7 {[%emt 0:00:59]} 32. Nd2 {[%emt 0:04:22]} Re1+ {[%emt 0:01:11]} 33. Rxe1 {[%emt 0:00:08]} Rxe1+ {[%emt 0:00:04]} 34. Nf1 {[%emt 0:00:05]} g6 {[%emt 0:01:07]} 35. Rd4 {[%emt 0:02:32]} Bb6 {[%emt 0:01:26]} 36. Rd7 {[%emt 0:03:31]} Qc6 {[%emt 0:00:32]} 37. Qd5 {[%emt 0:00:28]} Qf6 {[%emt 0:00:33]} 38. Qd2 {[%emt 0:00:29]} Rd1 {[%emt 0:00:40]} 0-1

[Event "European School-ch 2019"]
[Site "Mamaia"]
[Date "2019.06.07"]
[Round "8.9"]
[White "Tinarlioglu, Emre"]
[Black "Kasaeva, Sofiia"]
[Result "1-0"]
[ECO "D00"]
[WhiteElo "1907"]
[BlackElo "1890"]
[Annotator "NA RC"]
[PlyCount "35"]
[EventDate "2019.05.31"]
[EventType "swiss"]
[EventCountry "ROU"]
[SourceTitle "playchess.com"]
[Source "ChessBase"]
[SourceQuality "1"]
[TimeControl "40/5400+30:1800+30"]

1. d4 {[%emt 0:00:00]} d5 {[%emt 0:00:00]} 2. Bg5 {[%emt 0:00:00]} h6 {[%emt 0:00:00]} 3. Bh4 {[%emt 0:00:00]} c6 {[%emt 0:00:05]} 4. Nf3 {[%emt 0:00:00]} Qb6 {[%emt 0:00:08]} 5. Qc1 {[%emt 0:00:00]} g5 {[%emt 0:01:09]} 6. Bg3 {[%emt 0:00:03]} g4 {[%emt 0:00:22]} 7. Ne5 {[%emt 0:05:57]} Qxd4 {[%emt 0:00:09]} 8. e3 {[%emt 0:02:12]} Qb6 {[%emt 0:01:12]} 9. c4 {[%emt 0:00:52]} d4 {[%emt 0:12:07]} 10. Be2 {[%emt 0:09:25]} Bg7 {[%emt 0:02:42]} 11. O-O {[%emt 0:08:21]} dxe3 {[%emt 0:01:40]} 12. c5 {[%emt 0:06:45]} exf2+ {[%emt 0:27:38]} 13. Rxf2 {[%emt 0:00:20]} Qb4 {[%emt 0:02:32]} 14. Rf4 {[%emt 0:02:23]} Qa5 {[%emt 0:20:40]} 15. Nxf7 {[%emt 0:00:14]} Rh7 {[%emt 0:08:11]} 16. Bd3 {[%emt 0:01:25]} Bd4+ {[%emt 0:01:19]} 17. Rxd4 {[%emt 0:00:36]} Rxf7 {[%emt 0:00:05]} 18. b4 {[%emt 0:00:41]} 1-0

[Event "European School-ch 2019"]
[Site "Mamaia"]
[Date "2019.06.07"]
[Round "8.10"]
[White "Vilcu, Matei-Stefan"]
[Black "Neshev, Nikola"]
[Result "0-1"]
[ECO "C50"]
[WhiteElo "1991"]
[BlackElo "1370"]
[Annotator "NA RC"]
[PlyCount "94"]
[EventDate "2019.05.31"]
[EventType "swiss"]
[EventCountry "ROU"]
[SourceTitle "playchess.com"]
[Source "ChessBase"]
[SourceQuality "1"]
[TimeControl "40/5400+30:1800+30"]

1. e4 {[%emt 0:00:00]} e5 {[%emt 0:00:00]} 2. Nf3 {[%emt 0:00:00]} Nc6 {[%emt 0:00:00]} 3. Bc4 {[%emt 0:00:00]} Nf6 {[%emt 0:00:00]} 4. d3 {[%emt 0:00:00]} Bc5 {[%emt 0:00:00]} 5. Bb3 {[%emt 0:00:58]} O-O {[%emt 0:04:10]} 6. h3 {[%emt 0:00:27]} d6 {[%emt 0:03:17]} 7. c3 {[%emt 0:00:08]} Be6 {[%emt 0:00:42]} 8. Nbd2 {[%emt 0:01:05]} Nh5 {[%emt 0:37:21]} 9. Nf1 {[%emt 0:12:31]} Qf6 {[%emt 0:03:39]} 10. Bg5 {[%emt 0:13:30]} Qg6 {[%emt 0:00:08]} 11. g4 {[%emt 0:01:57]} Nf4 {[%emt 0:06:11]} 12. Bxf4 {[%emt 0:05:18]} exf4 {[%emt 0:00:06]} 13. Qd2 {[%emt 0:07:57]} Ne5 {[%emt 0:02:55]} 14. N1h2 {[%emt 0:02:52]} Bxb3 {[%emt 0:04:51]} 15. axb3 {[%emt 0:01:11]} Rfe8 {[%emt 0:00:05]} 16. O-O-O {[%emt 0:01:44]} Qe6 {[%emt 0:02:55]} 17. Kc2 {[%emt 0:05:53]} a5 {[%emt 0:01:03]} 18. Qxf4 {[%emt 0:04:27]} a4 {[%emt 0:02:28]} 19. bxa4 {[%emt 0:08:25]} Rxa4 {[%emt 0:02:57]} 20. Nd2 {[%emt 0:05:26]} Ra2 {[%emt 0:01:13]} 21. Rb1 {[%emt 0:09:39]} Qd7 {[%emt 0:08:08]} 22. Nb3 Ba3 {[%emt 0:04:25]} 23. Qe3 {[%emt 0:09:51]} c5 {[%emt 0:00:43]} 24. f4 {[%emt 0:02:23]} c4 {[%emt 0:04:17]} 25. fxe5 {[%emt 0:00:13]} cxb3+ {[%emt 0:00:06]} 26. Kc1 {[%emt 0:02:06]} Qc6 {[%emt 0:01:51]} 27. d4 {[%emt 0:01:23]} Rc8 {[%emt 0:07:38]} 28. bxa3 {[%emt 0:00:26]} Rc2+ {[%emt 0:00:04]} 29. Kd1 {[%emt 0:00:08]} Rxc3 {[%emt 0:00:08]} 30. Qf4 {[%emt 0:02:24]} b2 {[%emt 0:00:55]} 31. Ke2 {[%emt 0:01:06]} Qc4+ {[%emt 0:00:58]} 32. Kf2 {[%emt 0:00:32]} Qxd4+ {[%emt 0:00:34]} 33. Kg2 {[%emt 0:00:30]} dxe5 {[%emt 0:01:10]} 34. Qf5 {[%emt 0:01:00]} Qe3 {[%emt 0:01:22]} 35. Qf3 {[%emt 0:00:30]} Qd2+ {[%emt 0:00:31]} 36. Qf2 {[%emt 0:00:16]} Qd3 {[%emt 0:00:11]} 37. Qf3 {[%emt 0:01:01]} Rc2+ {[%emt 0:00:14]} 38. Kg3 {[%emt 0:00:08]} Qd8 {[%emt 0:00:31]} 39. Rhd1 {[%emt 0:00:54]} Qb6 {[%emt 0:00:37]} 40. Rd3 {[%emt 0:00:00]} Rc1 {[%emt 0:00:00]} 41. Rb3 {[%emt 0:03:28]} Qg1+ {[%emt 0:00:48]} 42. Kh4 {[%emt 0:00:10]} Qe1+ {[%emt 0:01:25]} 43. Kh5 {[%emt 0:00:09]} g6+ {[%emt 0:00:16]} 44. Kg5 {[%emt 0:00:12]} h6+ {[%emt 0:00:08]} 45. Kf6 {[%emt 0:00:17]} Qh4+ {[%emt 0:00:52]} 46. Kxe5 {[%emt 0:00:06]} Qg5+ {[%emt 0:00:10]} 47. Kd4 {[%emt 0:00:08]} Rd8# 0-1

[Event "European School-ch 2019"]
[Site "Mamaia"]
[Date "2019.06.07"]
[Round "8.11"]
[White "Dotsenko, Makar"]
[Black "Gleizer, Adar"]
[Result "1-0"]
[ECO "D70"]
[WhiteElo "1610"]
[BlackElo "1774"]
[Annotator "NA RC"]
[PlyCount "41"]
[EventDate "2019.05.31"]
[EventType "swiss"]
[EventCountry "ROU"]
[SourceTitle "playchess.com"]
[Source "ChessBase"]
[SourceQuality "1"]
[TimeControl "40/5400+30:1800+30"]

1. d4 {[%emt 0:00:00]} Nf6 {[%emt 0:00:00]} 2. c4 {[%emt 0:00:00]} g6 {[%emt 0:00:00]} 3. f3 {[%emt 0:01:10]} d5 {[%emt 0:03:25]} 4. cxd5 {[%emt 0:00:30]} Nxd5 {[%emt 0:00:43]} 5. e4 {[%emt 0:00:00]} Nb6 {[%emt 0:03:35]} 6. Be3 {[%emt 0:00:39]} Bg7 {[%emt 0:00:55]} 7. Nc3 {[%emt 0:00:30]} Nc6 {[%emt 0:04:30]} 8. Bb5 {[%emt 0:09:28]} Bd7 {[%emt 0:00:09]} 9. Qd2 {[%emt 0:14:18]} Na5 {[%emt 0:12:55]} 10. Bxd7+ {[%emt 0:10:51]} Qxd7 {[%emt 0:02:17]} 11. b3 {[%emt 0:05:23]} Nc6 {[%emt 0:06:49]} 12. Nge2 {[%emt 0:02:09]} O-O-O {[%emt 0:05:18]} 13. Rd1 {[%emt 0:06:02]} e5 {[%emt 0:05:43]} 14. d5 {[%emt 0:02:57]} Ne7 {[%emt 0:00:12]} 15. a4 {[%emt 0:03:50]} Kb8 {[%emt 0:00:44]} 16. a5 {[%emt 0:05:54]} Nbc8 {[%emt 0:00:22]} 17. Na4 {[%emt 0:03:35]} Qb5 {[%emt 0:00:59]} 18. Nc5 {[%emt 0:03:46]} b6 {[%emt 0:02:26]} 19. Nc3 {[%emt 0:05:18]} Qxa5 {[%emt 0:02:12]} 20. b4 {[%emt 0:00:11]} Qa3 {[%emt 0:00:19]} 21. Nb5 {[%emt 0:02:53]} 1-0

[Event "European School-ch 2019"]
[Site "Mamaia"]
[Date "2019.06.07"]
[Round "8.12"]
[White "Nedelcu, Teodor-Cosmin"]
[Black "Silich, Yahor"]
[Result "1-0"]
[ECO "E94"]
[WhiteElo "1954"]
[BlackElo "2082"]
[Annotator "NA RC"]
[PlyCount "123"]
[EventDate "2019.05.31"]
[EventType "swiss"]
[EventCountry "ROU"]
[SourceTitle "playchess.com"]
[Source "ChessBase"]
[SourceQuality "1"]
[TimeControl "40/5400+30:1800+30"]

1. d4 {[%emt 0:00:00]} Nf6 {[%emt 0:00:00]} 2. c4 {[%emt 0:00:00]} g6 {[%emt 0:00:21]} 3. Nc3 {[%emt 0:00:11]} Bg7 {[%emt 0:00:41]} 4. e4 {[%emt 0:00:34]} d6 {[%emt 0:00:07]} 5. Be2 {[%emt 0:01:16]} O-O {[%emt 0:01:16]} 6. Nf3 {[%emt 0:03:27]} e5 {[%emt 0:01:02]} 7. O-O {[%emt 0:08:17]} c6 {[%emt 0:01:10]} 8. Re1 {[%emt 0:11:55]} Na6 {[%emt 0:06:50]} 9. Be3 {[%emt 0:13:50]} exd4 {[%emt 0:04:19]} 10. Nxd4 {[%emt 0:02:27]} Re8 {[%emt 0:02:31]} 11. f3 {[%emt 0:03:51]} d5 {[%emt 0:02:48]} 12. cxd5 {[%emt 0:01:17]} Nxd5 {[%emt 0:01:30]} 13. Nxd5 {[%emt 0:02:07]} cxd5 {[%emt 0:02:08]} 14. Bxa6 {[%emt 0:12:31]} bxa6 {[%emt 0:00:53]} 15. Nc6 {[%emt 0:03:04]} Qh4 {[%emt 0:25:26]} 16. Bf2 {[%emt 0:02:57]} Qf6 {[%emt 0:05:34]} 17. exd5 {[%emt 0:01:38]} Bd7 {[%emt 0:08:53]} 18. Bd4 {[%emt 0:05:16]} Qg5 {[%emt 0:01:17]} 19. Bxg7 {[%emt 0:03:01]} Kxg7 {[%emt 0:00:26]} 20. Qd4+ {[%emt 0:00:20]} f6 {[%emt 0:01:13]} 21. Rad1 {[%emt 0:01:18]} h5 {[%emt 0:02:33]} 22. b3 {[%emt 0:07:09]} h4 {[%emt 0:01:26]} 23. Re4 {[%emt 0:03:19]} h3 {[%emt 0:05:25]} 24. g3 {[%emt 0:02:25]} Bxc6 {[%emt 0:11:00]} 25. dxc6 {[%emt 0:01:39]} Red8 {[%emt 0:00:04]} 26. Re7+ {[%emt 0:00:29]} Kh6 {[%emt 0:02:33]} 27. Rd7 {[%emt 0:00:08]} Re8 {[%emt 0:01:18]} 28. Qd2 {[%emt 0:00:46]} Qxd2 {[%emt 0:00:29]} 29. R1xd2 {[%emt 0:00:29]} Rac8 {[%emt 0:00:10]} 30. c7 {[%emt 0:00:34]} Re1+ {[%emt 0:00:07]} 31. Kf2 {[%emt 0:01:00]} Rc1 {[%emt 0:00:03]} 32. g4 {[%emt 0:00:27]} R8xc7 {[%emt 0:01:36]} 33. Rxc7 {[%emt 0:00:09]} Rxc7 {[%emt 0:00:04]} 34. Kg3 {[%emt 0:00:09]} Rc3 {[%emt 0:01:27]} 35. Rd6 {[%emt 0:01:33]} Kg5 {[%emt 0:00:24]} 36. Rxa6 {[%emt 0:00:42]} f5 {[%emt 0:00:39]} 37. gxf5 {[%emt 0:00:29]} gxf5 {[%emt 0:00:05]} 38. Ra4 {[%emt 0:01:49]} Rd3 {[%emt 0:01:16]} 39. Ra5 {[%emt 0:01:47]} Rc3 {[%emt 0:00:36]} 40. b4 {[%emt 0:00:00]} a6 {[%emt 0:00:00]} 41. Rxa6 {[%emt 0:14:18]} f4+ {[%emt 0:00:53]} 42. Kxh3 {[%emt 0:00:07]} Rxf3+ {[%emt 0:00:03]} 43. Kg2 {[%emt 0:00:05]} Rc3 {[%emt 0:00:21]} 44. Ra5+ {[%emt 0:03:12]} Kg4 {[%emt 0:01:19]} 45. h3+ {[%emt 0:01:27]} Kh4 {[%emt 0:00:04]} 46. Rf5 {[%emt 0:02:25]} Rg3+ {[%emt 0:00:34]} 47. Kf2 {[%emt 0:00:17]} Kxh3 {[%emt 0:00:10]} 48. Rxf4 {[%emt 0:00:10]} Rg2+ {[%emt 0:00:04]} 49. Ke3 {[%emt 0:00:11]} Rxa2 {[%emt 0:00:01]} 50. Kd4 {[%emt 0:00:06]} Kg3 {[%emt 0:00:23]} 51. Rf8 {[%emt 0:00:03]} Rb2 {[%emt 0:00:30]} 52. Kc5 {[%emt 0:00:05]} Rc2+ {[%emt 0:00:04]} 53. Kb6 {[%emt 0:00:05]} Kg4 {[%emt 0:00:07]} 54. b5 {[%emt 0:00:04]} Kg5 {[%emt 0:00:07]} 55. Ka7 {[%emt 0:00:13]} Ra2+ {[%emt 0:00:07]} 56. Kb7 {[%emt 0:00:04]} Kg6 {[%emt 0:00:06]} 57. b6 {[%emt 0:00:05]} Kg7 {[%emt 0:00:08]} 58. Rf1 {[%emt 0:00:16]} Rb2 {[%emt 0:00:19]} 59. Ka7 {[%emt 0:00:20]} Ra2+ {[%emt 0:00:05]} 60. Kb8 {[%emt 0:00:03]} Rb2 {[%emt 0:00:04]} 61. b7 {[%emt 0:00:05]} Kg6 {[%emt 0:00:08]} 62. Ra1 {[%emt 0:00:27]} 1-0

[Event "European School-ch 2019"]
[Site "Mamaia"]
[Date "2019.06.07"]
[Round "8.13"]
[White "Dobre, Radu-Fabian"]
[Black "Simonyan, Grigori"]
[Result "1/2-1/2"]
[ECO "B31"]
[WhiteElo "1978"]
[BlackElo "2019"]
[Annotator "NA RC"]
[PlyCount "117"]
[EventDate "2019.05.31"]
[EventType "swiss"]
[EventCountry "ROU"]
[SourceTitle "playchess.com"]
[Source "ChessBase"]
[SourceQuality "1"]
[TimeControl "40/5400+30:1800+30"]

1. e4 {[%emt 0:00:00]} c5 {[%emt 0:00:00]} 2. Nf3 {[%emt 0:00:00]} Nc6 {[%emt 0:00:00]} 3. Bb5 {[%emt 0:00:00]} g6 {[%emt 0:01:10]} 4. O-O {[%emt 0:00:00]} Bg7 {[%emt 0:00:38]} 5. Re1 {[%emt 0:00:43]} Nf6 {[%emt 0:00:57]} 6. e5 {[%emt 0:00:05]} Nd5 {[%emt 0:00:05]} 7. Nc3 {[%emt 0:00:00]} Nc7 8. Bxc6 dxc6 {[%emt 0:00:18]} 9. Ne4 {[%emt 0:00:17]} Ne6 {[%emt 0:00:07]} 10. d3 {[%emt 0:00:09]} b6 {[%emt 0:00:05] B31: Sicilian: 2...Nc6 3 Bb5 g6} 11. Be3 {[%emt 0:02:02]} Nd4 {[%emt 0:00:21]} 12. Bxd4 {[%emt 0:13:52]} cxd4 {[%emt 0:00:05]} 13. Nf6+ {[%emt 0:01:08]} Kf8 {[%emt 0:00:18]} 14. Ne4 {[%emt 0:00:16]} Bg4 {[%emt 0:01:17] [#]} 15. Neg5 $146 {[%emt 0:02:40]} ({Predecessor:} 15. Ned2 c5 16. h3 Bf5 17. a4 Bh6 18. Ne4 {½-½ (28) Rubinas,P (2562)-Matei,C (2483) ICCF email 2011}) 15... h6 {[%emt 0:25:53]} 16. h3 {[%emt 0:03:14]} Bf5 {[%emt 0:09:58]} 17. Ne4 {[%emt 0:00:27]} c5 {[%emt 0:03:50]} 18. a4 {[%emt 0:05:15]} Qd5 {[%emt 0:03:03]} 19. Ng3 {[%emt 0:00:30]} Be6 {[%emt 0:02:45]} 20. Qe2 {[%emt 0:00:30]} Kg8 {[%emt 0:03:54]} 21. Nd2 {[%emt 0:00:18]} h5 {[%emt 0:11:07]} 22. f4 {[%emt 0:00:47]} h4 {[%emt 0:00:11]} 23. Nge4 {[%emt 0:00:05]} Rh5 {[%emt 0:01:37]} 24. Rf1 {[%emt 0:02:48]} f6 {[%emt 0:01:29]} 25. exf6 {[%emt 0:02:59]} exf6 {[%emt 0:00:14]} 26. Rae1 {[%emt 0:00:04]} Bd7 {[%emt 0:02:01]} 27. b3 {[%emt 0:01:57]} Rf8 {[%emt 0:01:10]} 28. Qf3 {[%emt 0:02:10]} Bh6 {[%emt 0:03:40]} 29. Nc4 {[%emt 0:01:41]} Bc6 {[%emt 0:05:42]} 30. Qg4 {[%emt 0:24:40]} Bg7 {[%emt 0:01:48]} 31. Ned2 {[%emt 0:06:17]} Rf7 {[%emt 0:04:58]} 32. Rf2 {[%emt 0:04:58]} Kh7 {[%emt 0:02:44]} 33. Qe2 {[%emt 0:04:01]} Bf8 {[%emt 0:02:39]} 34. Qg4 {[%emt 0:02:49]} Bh6 {[%emt 0:02:09]} 35. Qe6 {[%emt 0:03:06]} Qxe6 {[%emt 0:01:28]} 36. Rxe6 {[%emt 0:00:15]} Bd5 {[%emt 0:00:01]} 37. Re8 {[%emt 0:00:32]} Bc6 {[%emt 0:00:57]} 38. Rc8 {[%emt 0:00:45]} Bb7 {[%emt 0:00:27]} 39. Rd8 {[%emt 0:00:25]} Re7 {[%emt 0:01:45]} 40. Nd6 {[%emt 0:00:00]} Kg7 {[%emt 0:00:00]} 41. N2e4 {[%emt 0:03:10]} Bc6 {[%emt 0:05:23]} 42. Rc8 {[%emt 0:01:29]} Bb7 {[%emt 0:03:53]} 43. Ne8+ {[%emt 0:13:32]} Kf8 {[%emt 0:01:50]} 44. Rb8 {[%emt 0:00:17]} Rxe8 {[%emt 0:01:17]} 45. Rxb7 {[%emt 0:00:00]} Re7 {[%emt 0:00:52]} 46. Rb8+ {[%emt 0:05:27]} Kg7 {[%emt 0:00:16]} 47. a5 {[%emt 0:00:15]} Rf5 {[%emt 0:08:45]} 48. axb6 {[%emt 0:01:40]} axb6 {[%emt 0:00:05]} 49. Rxb6 {[%emt 0:02:25]} Rxf4 {[%emt 0:01:32]} 50. Rxf4 {[%emt 0:04:11]} Bxf4 {[%emt 0:00:06]} 51. Kf1 {[%emt 0:00:04]} Bg3 {[%emt 0:13:08]} (51... Be3 $11) 52. Nxg3 {[%emt 0:00:41]} (52. Rc6 $16) 52... hxg3 {[%emt 0:00:04]} 53. Rb5 $15 {[%emt 0:09:43]} Re5 54. b4 cxb4 55. Rxe5 fxe5 56. Ke2 Kf6 57. Kf3 Kf5 58. h4 Kf6 59. Ke4 1/2-1/2

[Event "European School-ch 2019"]
[Site "Mamaia"]
[Date "2019.06.07"]
[Round "8.16"]
[White "Levin, Guy"]
[Black "Kan, Toby"]
[Result "1-0"]
[ECO "A30"]
[WhiteElo "2054"]
[BlackElo "1550"]
[Annotator "NA RC"]
[PlyCount "129"]
[EventDate "2019.05.31"]
[EventType "swiss"]
[EventCountry "ROU"]
[SourceTitle "playchess.com"]
[Source "ChessBase"]
[SourceQuality "1"]
[TimeControl "40/5400+30:1800+30"]

1. c4 {[%emt 0:00:00]} c5 {[%emt 0:00:00]} 2. Nf3 {[%emt 0:00:00]} g6 {[%emt 0:00:00]} 3. g3 {[%emt 0:01:56]} Bg7 {[%emt 0:00:00]} 4. Bg2 {[%emt 0:00:05]} Nc6 {[%emt 0:00:12]} 5. O-O {[%emt 0:00:36]} d6 {[%emt 0:00:16]} 6. Nc3 {[%emt 0:00:20]} e6 {[%emt 0:00:13]} 7. e4 {[%emt 0:01:06]} Nge7 {[%emt 0:01:14]} 8. d3 {[%emt 0:00:16]} O-O {[%emt 0:00:37]} 9. Bg5 {[%emt 0:04:04] A36: Symmetrical English vs ...g6: 4 Bg2 Bg7} (9. Rb1 b6 10. Be3 Nd4 11. Qd2 Bb7 12. Bh6 Bxh6 13. Qxh6 Nxf3+ 14. Bxf3 Nc6 15. Bg2 Qf6 16. Qe3 Rad8 {0-1 (79) Arkell,K (2499)-Ivanov,A (2506) Acqui Terme 2015}) 9... Qd7 $146 {[%emt 0:02:07]} ({Predecessor:} 9... h6 10. Be3 Nd4 11. Qd2 Kh7 12. Rab1 f5 13. Ne1 Nec6 14. f4 a6 15. Ne2 fxe4 16. dxe4 Qa5 {0-1 (32) Elissalt Cardenas,H (2334)-Stella,A (2403) Azuqueca de Henares 2014}) 10. Qd2 {[%emt 0:00:36]} b6 {[%emt 0:04:37]} 11. Bh6 {[%emt 0:00:42]} Bb7 {[%emt 0:00:24]} 12. Bxg7 Kxg7 {[%emt 0:00:09]} 13. d4 {[%emt 0:02:22]} Rad8 {[%emt 0:20:24]} 14. d5 {[%emt 0:02:19]} exd5 {[%emt 0:05:07]} 15. exd5 {[%emt 0:01:29]} Na5 {[%emt 0:01:10]} 16. b3 {[%emt 0:00:17]} a6 {[%emt 0:05:32]} 17. h4 {[%emt 0:05:55]} h6 {[%emt 0:09:56]} 18. Kh2 {[%emt 0:01:38]} Bc8 {[%emt 0:03:59]} 19. Rae1 {[%emt 0:02:43]} Rde8 {[%emt 0:01:02]} 20. Ne4 {[%emt 0:00:37]} f6 {[%emt 0:03:13]} 21. Qc3 {[%emt 0:01:01]} Ng8 {[%emt 0:04:57]} 22. Ng1 {[%emt 0:02:21]} Kh7 {[%emt 0:01:10]} 23. Nh3 {[%emt 0:00:50]} Nb7 {[%emt 0:03:05]} 24. f4 {[%emt 0:02:36]} Qg7 {[%emt 0:01:39]} 25. Qc2 {[%emt 0:05:38]} f5 {[%emt 0:01:55]} 26. Nc3 {[%emt 0:00:45]} Nf6 {[%emt 0:00:28]} 27. Nf2 {[%emt 0:00:39]} Bd7 {[%emt 0:00:53]} 28. Bf3 {[%emt 0:07:14]} b5 {[%emt 0:02:37]} 29. Be2 {[%emt 0:05:11]} b4 {[%emt 0:01:22]} 30. Ncd1 {[%emt 0:00:40]} Re7 {[%emt 0:03:12]} 31. Bd3 {[%emt 0:02:57]} Rfe8 {[%emt 0:01:39]} 32. Qd2 {[%emt 0:00:29]} a5 {[%emt 0:00:45]} 33. Ne3 {[%emt 0:02:08]} Nd8 {[%emt 0:02:57]} 34. Ng2 {[%emt 0:07:52]} Nb7 {[%emt 0:03:47]} 35. Rxe7 {[%emt 0:03:54]} Rxe7 {[%emt 0:00:28]} 36. Re1 {[%emt 0:03:23]} Nd8 {[%emt 0:01:24]} 37. a4 {[%emt 0:02:06]} Nb7 {[%emt 0:00:29]} 38. Ne3 {[%emt 0:04:09]} Nd8 {[%emt 0:01:32]} 39. Rg1 {[%emt 0:01:59]} h5 {[%emt 0:01:33]} 40. Re1 {[%emt 0:00:00]} Re8 {[%emt 0:00:00]} 41. Be2 {[%emt 0:07:22]} Nf7 {[%emt 0:03:18]} 42. Bf3 {[%emt 0:00:20]} Nh6 {[%emt 0:02:44]} 43. Nh3 {[%emt 0:00:39]} Nf7 {[%emt 0:00:17]} 44. Ng5+ {[%emt 0:01:12]} Nxg5 {[%emt 0:00:16]} 45. fxg5 {[%emt 0:07:25]} Ng4+ {[%emt 0:01:14]} 46. Bxg4 {[%emt 0:02:18]} hxg4 {[%emt 0:00:15]} 47. Ng2 {[%emt 0:03:20]} Re5 {[%emt 0:05:34]} 48. Rh1 {[%emt 0:02:14]} Kg8 {[%emt 0:01:28]} 49. Re1 {[%emt 0:07:34]} Qe7 {[%emt 0:02:02]} 50. Rxe5 {[%emt 0:02:27]} Qxe5 {[%emt 0:00:14]} 51. Nf4 {[%emt 0:00:43]} Qe8 {[%emt 0:10:43]} 52. Qb2 {[%emt 0:00:38]} Qf7 {[%emt 0:00:43]} 53. Kg2 {[%emt 0:02:51]} Qg7 {[%emt 0:09:15]} 54. Qe2 {[%emt 0:00:22]} Kf7 {[%emt 0:01:39]} 55. Ne6 {[%emt 0:06:47]} (55. Qd1 $11) 55... Qe5 $2 {[%emt 0:00:32]} (55... Qc3 $11 56. Nd8+ Kg8) 56. Qxe5 {[%emt 0:00:29]} dxe5 {[%emt 0:00:16]} 57. Nxc5 {[%emt 0:00:04]} Be8 {[%emt 0:01:34]} 58. d6 $18 {[%emt 0:01:21]} Bc6+ {[%emt 0:00:12]} 59. Kf2 {[%emt 0:00:01]} f4 {[%emt 0:01:12]} 60. d7 {[%emt 0:01:25]} Ke7 {[%emt 0:01:59]} 61. h5 {[%emt 0:00:26]} gxh5 {[%emt 0:00:41]} 62. g6 {[%emt 0:00:02]} Bxd7 {[%emt 0:00:29]} 63. Nxd7 {[%emt 0:00:13]} h4 {[%emt 0:00:21]} 64. Nxe5 {[%emt 0:00:54]} fxg3+ {[%emt 0:01:38]} 65. Kg2 {[%emt 0:00:09]} 1-0

[Event "European School-ch 2019"]
[Site "Mamaia"]
[Date "2019.06.07"]
[Round "8.17"]
[White "Kanli, Alperen"]
[Black "Dias, Savin"]
[Result "0-1"]
[ECO "B54"]
[WhiteElo "1790"]
[BlackElo "1858"]
[Annotator "NA RC"]
[PlyCount "75"]
[EventDate "2019.05.31"]
[EventType "swiss"]
[EventCountry "ROU"]
[SourceTitle "playchess.com"]
[Source "ChessBase"]
[SourceQuality "1"]
[TimeControl "40/5400+30:1800+30"]

1. e4 {[%emt 0:00:00]} c5 {[%emt 0:00:00]} 2. Nf3 {[%emt 0:00:00]} d6 {[%emt 0:00:00]} 3. d4 {[%emt 0:00:00]} cxd4 {[%emt 0:00:00]} 4. Nxd4 {[%emt 0:00:09]} Nf6 {[%emt 0:00:00]} 5. Bd3 {[%emt 0:00:19]} g6 {[%emt 0:00:56]} 6. c4 {[%emt 0:00:34]} Bg7 {[%emt 0:00:08]} 7. Nc3 {[%emt 0:00:17]} Nc6 {[%emt 0:00:06]} 8. Nc2 {[%emt 0:00:12]} O-O {[%emt 0:00:38]} 9. O-O {[%emt 0:00:13]} Ne5 {[%emt 0:02:49]} 10. Be2 {[%emt 0:01:09]} Be6 {[%emt 0:01:13]} 11. b3 {[%emt 0:00:31]} Rc8 {[%emt 0:02:59]} 12. f3 {[%emt 0:01:21]} a6 {[%emt 0:04:44]} 13. Bb2 {[%emt 0:06:05]} Nxc4 {[%emt 0:22:20]} 14. Bxc4 {[%emt 0:36:32]} Bxc4 {[%emt 0:00:33]} 15. bxc4 {[%emt 0:00:02]} Qb6+ {[%emt 0:00:09]} 16. Qd4 {[%emt 0:00:30]} Qxb2 {[%emt 0:01:02]} 17. Rab1 {[%emt 0:00:00]} Nxe4 {[%emt 0:17:42]} 18. Qxg7+ {[%emt 0:08:45]} Kxg7 {[%emt 0:00:15]} 19. Rxb2 {[%emt 0:00:06]} Nxc3 {[%emt 0:00:05]} 20. Rxb7 {[%emt 0:03:25]} Rxc4 {[%emt 0:03:20]} 21. Rxe7 {[%emt 0:01:24]} Nxa2 {[%emt 0:01:18]} 22. Ne3 {[%emt 0:00:07]} Rc6 {[%emt 0:00:36]} 23. Rb1 {[%emt 0:00:57]} Nc3 {[%emt 0:01:24]} 24. Rbb7 {[%emt 0:00:17]} a5 {[%emt 0:07:56]} 25. Ra7 {[%emt 0:03:13]} a4 {[%emt 0:00:44]} 26. Red7 {[%emt 0:00:08]} h5 {[%emt 0:02:24]} 27. Kf1 {[%emt 0:01:23]} Kg8 {[%emt 0:08:00]} 28. Ke1 {[%emt 0:01:22]} Rc5 {[%emt 0:03:26]} 29. Kd2 {[%emt 0:03:29]} a3 {[%emt 0:02:41]} 30. Kd3 {[%emt 0:02:16]} Nb5 {[%emt 0:02:44]} 31. Ra6 {[%emt 0:02:47]} Rc3+ {[%emt 0:02:03]} 32. Kd2 {[%emt 0:00:01]} Rc5 {[%emt 0:04:26]} 33. Nc2 {[%emt 0:04:18]} Rd5+ {[%emt 0:00:19]} 34. Ke3 {[%emt 0:02:02]} Re8+ {[%emt 0:00:21]} 35. Kf4 {[%emt 0:00:08]} Re2 {[%emt 0:03:45]} 36. Nxa3 {[%emt 0:06:58]} g5+ {[%emt 0:00:23]} 37. Kg3 {[%emt 0:00:46]} Rdd2 {[%emt 0:00:14]} 38. f4 {[%emt 0:01:10]} 0-1